Cogmind - Beta 13 @@@ ROGUE MODE // 2024.04.07 @ 22:50:17 Player: Unholy Diver Result: Destroyed by S-10 Pest with Light Assault Rifle Performance ------------- Evolutions (0) 0 Regions Visited (1) 200 Robots Destroyed (11) 55 Value Destroyed (302) 302 Prototype IDs (0) 0 Alien Tech Used (0) 0 Bonus (0) 0 TOTAL SCORE: 557 Bonus ------- None Cogmind --------- Core Integrity 0/250 Matter 276/300 Energy 100/100 System Corruption 5% Temperature Cool (0) Movement Core (100) Ox1 Location -10/Materials Parts ------- > --- POWER (1) -------- (None) > --- PROPULSION (2) --- (None) > --- UTILITY (2) ------ Small Storage Unit Machine Analyzer > --- WEAPON (2) ------- (None) > --- INVENTORY (8) ---- Light Ion Engine Visual Processing Unit Light Armor Plating Recalibrator EM Pulse Gun Peak State ------------ > --- POWER ------------ Light Ion Engine > --- PROPULSION ------- Aluminum Leg Aluminum Leg > --- UTILITY ---------- Small Storage Unit Recalibrator > --- WEAPON ----------- Beam Cannon Assault Rifle > --- INVENTORY -------- Light Ion Engine Aluminum Leg Small Laser [Rating: 10] Favorites ----------- Power Light Ion Engine Engine Light Ion Engine Propulsion Aluminum Leg Leg Aluminum Leg Utility Small Storage Unit Device Recalibrator Storage Small Storage Unit Processor Machine Analyzer Weapon Beam Cannon Energy Gun Medium Laser Energy Cannon Beam Cannon Ballistic Gun Assault Rifle Build | -11 -10 ------- Run | Yrd Mat Slots Evolved . | . . Power . | . . Propulsion . | . . Utility . | . . Weapon . | . . Parts Attached 13 | 6 7 Power 3 | 1 2 Engine 3 | 1 2 Core . | . . Reactor . | . . Propulsion 3 | 2 1 Treads . | . . Leg 3 | 2 1 Wheel . | . . Hover . | . . Flight . | . . Utility 3 | 1 2 Device 1 | . 1 Storage 1 | 1 . Processor 1 | . 1 Hackware . | . . Protection . | . . Artifact . | . . Weapon 4 | 2 2 Energy Gun 2 | 1 1 Energy Cannon 1 | . 1 Ballistic Gun 1 | 1 . Ballistic Cannon . | . . Launcher . | . . Special Weapon . | . . Impact Weapon . | . . Slashing Weapon . | . . Piercing Weapon . | . . Special Melee Weapon . | . . Unidentified Prototypes . | . . Parts Lost 5 | . 5 Power 2 | . 2 Propulsion 2 | . 2 Utility . | . . Weapon 1 | . 1 Highest Loss Streak 3 | . 3 To Critical Strikes . | . . Average Slot Usage (%) 92 | . 92 Engine 11 | . 11 Leg 27 | . 27 Device 3 | . 3 Storage 14 | . 14 Processor 6 | . 6 Energy Gun 9 | . 9 Energy Cannon 10 | . 10 Ballistic Gun 7 | . 7 Naked Turns . | . . Heaviest Build 15 | 11 15 Greatest Support 20 | 20 20 Greatest Overweight (x) 2 | . 2 Average Overweight (x) . | . . Largest Inventory Capacity 8 | 8 8 Average Capacity 7 | 6 8 Most Carried 7 | 3 7 Average Carried 3 | 1 3 Final Capacity 8 | 8 8 Final Carried 5 | 1 5 Class Distribution -------------------- 100% | Mutant Dominant Class ---------------- Mutant | -10/Materials Resources | -11 -10 ----------- Run | Yrd Mat Matter Collected 380 | 238 142 Remotely . | . . Salvage Created 316 | . 316 Parts 24 | . 24 Haulers Intercepted . | . . Recyclers Shooed 1 | . 1 Parts Field Recycled . | . . Retrieved Matter . | . . Parts Self-Destructed . | . . Prevented . | . . Kills | -11 -10 ------- Run | Yrd Mat Combat Hostiles Destroyed 6 | . 6 Guns 2 | . 2 Cannons 4 | . 4 Classes Destroyed 4 | . 4 Worker 1 | . 1 Mechanic 1 | . 1 Watcher 3 | . 3 Grunt 6 | . 6 Best Kill Streak 3 | . 3 Combat Bots Only 2 | . 2 Max Kills in Single Turn 1 | . 1 Gunslinging . | . . Exploded . | . . Melee . | . . Uniques/NPCs Destroyed . | . . Combat | -11 -10 -------- Run | Yrd Mat Hostile Shots Fired 87 | . 87 Missed 21 | . 21 Damage Taken 796 | . 796 Core 252 | . 252 Absorbed by Shields . | . . Core Remaining (%) 100 | 100 . Volleys Fired 52 | . 52 Largest 2 | . 2 Hottest 110 | . 110 Shots Fired 90 | . 90 Gun 59 | . 59 Cannon 31 | . 31 Launcher . | . . Special . | . . Kinetic 20 | . 20 Thermal 70 | . 70 Explosive . | . . Electromagnetic . | . . Robot Hit Streak 6 | . 6 Robot Miss Streak 5 | . 5 Penetration Max . | . . Secondary Targets . | . . Shots Hit Robots 43 | . 43 Core Hits 21 | . 21 Critical Kills . | . . Critical Parts Destroyed . | . . Critical Strikes 2 | . 2 Burn 2 | . 2 Melee Attacks . | . . Impact . | . . Slashing . | . . Piercing . | . . Sneak Attacks . | . . Combat Hostiles . | . . Follow-up Attacks . | . . Damage Inflicted 675 | . 675 Guns 344 | . 344 Cannons 331 | . 331 Explosions . | . . Melee . | . . Ramming . | . . Kinetic 188 | . 188 Thermal 487 | . 487 Explosive . | . . Electromagnetic . | . . Impact . | . . Slashing . | . . Piercing . | . . Highest Corruption 5 | . 5 Average Corruption 3 | . 3 Corruption Purged . | . . Corruption Blocked . | . . Effects 5 | . 5 Message Errors 2 | . 2 Matter Fused 1 | . 1 Parts Rejected 1 | . 1 Parts Fused 1 | . 1 Overload Shots . | . . Overflow Damage 3 | . 3 Projectiles 3 | . 3 Explosions . | . . Melee . | . . Knockbacks . | . . Impact . | . . Kinetic . | . . Secondary . | . . Self-Inflicted Damage . | . . Shots . | . . Rammed . | . . Targets Rammed . | . . Kicked . | . . Crushed . | . . Highest Temperature 561 | . 561 Average Temperature 200 | . 200 Received Heat Transfer 360 | . 360 Effects 19 | . 19 Shutdowns 1 | . 1 Energy Bleed 1 | . 1 Interference 4 | . 4 Matter Decay 1 | . 1 Short Circuit 1 | . 1 Damage (minor) 3 | . 3 Damage (major) 7 | . 7 Damage (core) 1 | . 1 Siege Activations . | . . Robots Corrupted . | . . Combat Hostiles . | . . Parts Fried . | . . Impact Corruptions . | . . Robots Melted . | . . Combat Hostiles . | . . Parts Melted 4 | . 4 Heat Transferred 1284 | . 1284 Parts Sabotaged . | . . Parts Stolen . | . . Parts Stripped . | . . Power Chain Reactions . | . . Alert | -11 -10 ------- Run | Yrd Mat Peak Influence 146 | . 146 Initial . | . . Average 55 | . 65 Maximum Alert Level . | . . Low Security (%) 100 | 100 100 Level 1 . | . . Level 2 . | . . Level 3 . | . . Level 4 . | . . Level 5 . | . . High Security . | . . Max Security . | . . Squads Dispatched 1 | . 1 Investigation . | . . Extermination . | . . Reinforcement 1 | . 1 Assault . | . . Garrison . | . . Intercept . | . . Searches Triggered . | . . Construction Impeded . | . . Haulers Reinforced . | . . Active Scanning Responses . | . . Cargo Convoy Interrupts . | . . Stealth | -11 -10 --------- Run | Yrd Mat Distress Signals . | . . Communications Jammed . | . . Distress Signals . | . . Times Spotted 13 | . 13 Peak Tracking Total 3 | . 3 Tactical Retreats . | . . Traps | -11 -10 ------- Run | Yrd Mat Traps Triggered 4 | . 4 Indirectly . | . . Trap Hack Attempts . | . . Triggered . | . . Disarmed . | . . Reprogrammed . | . . Reused . | . . Traps Extracted . | . . Installed . | . . Triggered . | . . Machines | -11 -10 ---------- Run | Yrd Mat Machines Disabled 1 | . 1 Max in Single Turn 1 | . 1 Machines Repaired . | . . Machines Dismantled . | . . Machines Sabotaged . | . . Overloaded Fab Kills . | . . Hacking | -11 -10 --------- Run | Yrd Mat Machines Accessed . | . . Terminals . | . . Fabricators . | . . Repair Stations . | . . Recycling Units . | . . Scanalyzers . | . . Garrison Access . | . . Total Hacks . | . . Successful . | . . Failed . | . . Catastrophic . | . . Database Lockouts . | . . Manual . | . . Terminals . | . . Fabricators . | . . Repair Stations . | . . Recycling Units . | . . Scanalyzers . | . . Garrison Access . | . . Terminal Hacks . | . . Fabricator Hacks . | . . Repair Station Hacks . | . . Recycling Unit Hacks . | . . Scanalyzer . | . . Garrison Access Hacks . | . . Unauthorized Hacks . | . . Terminals . | . . Fabricators . | . . Repair Stations . | . . Recycling Units . | . . Scanalyzers . | . . Garrison Access . | . . Data Cores Recovered . | . . Used . | . . Hacking Detections . | . . Full Trace Events . | . . Feedback Events . | . . Feedback Blocked . | . . Robot Schematics Acquired . | . . Robots Built . | . . Authchips . | . . Time . | . . Total Robot Build Rating . | . . Part Schematics Acquired . | . . Parts Built . | . . Authchips . | . . Time . | . . Total Part Build Rating . | . . Parts Repaired . | . . Time . | . . Parts Recycled . | . . Recycled Matter . | . . Retrieved Matter . | . . Retrieved Components . | . . Parts Scanalyzed . | . . Part Schematics Acquired . | . . Parts Damaged . | . . Bothacking | -11 -10 ------------ Run | Yrd Mat Used RIF Installer . | . . Robots Hacked . | . . Non-combat . | . . Combat . | . . Robot Hacks Applied . | . . Relay Couplers Released . | . . Fabnet Peak Effective % . | . . Robots Rewired . | . . Allies Hacked . | . . Hacks Repelled . | . . Allies | -11 -10 -------- Run | Yrd Mat Total Allies . | . . Largest Group . | . . Highest-Rated Group . | . . Highest-Rated Ally . | . . Total Orders . | . . Ally Attacks . | . . Total Damage . | . . Kills . | . . Allies Corrupted . | . . Allies Melted . | . . Intel | -11 -10 ------- Run | Yrd Mat Robot Analysis Total . | . . Derelict Logs Recovered . | . . Drone Launches . | . . Drone Recoveries . | . . Exploration | -11 -10 ------------- Run | Yrd Mat Turns Passed 617 | 94 523 Spaces Moved 361 | 73 288 Core 17 | 9 8 Treads . | . . Legs 344 | 64 280 Wheels . | . . Hover . | . . Flight . | . . Fastest Speed 50 | 50 100 Average Speed 118 | 111 120 Slowest Speed 150 | 120 150 Overloaded Moves . | . . Propulsion Burnouts . | . . Robots Hopped . | . . Cave-ins Triggered . | . . Exploration Rate (%) 30 | 6 54 Regions Visited 1 Branch Regions . Pre-discovered Areas . | . . Known Exits Taken . | . . Unknown Exits Taken 1 | 1 . Scrap Searched . | . . Spaces Dug . | . . Terrain Destroyed . | . . Melee . | . . Projectile . | . . AOE . | . . Terrain Rammed . | . . Walls Destroyed . | . . Machines Disabled . | . . Actions | -11 -10 --------- Run | Yrd Mat Total 458 | 85 373 Wait 12 | . 12 Move 360 | 72 288 Hop . | . . Pick Up 17 | 7 10 Fast Attach . | . . Attach 8 | 6 2 Detach . | . . Swap 5 | . 5 Drop 4 | . 4 Fire 52 | . 52 Melee . | . . Ram . | . . Kick . | . . Crush . | . . Escape Stasis . | . . Rewire . | . . Trap . | . . Miscellaneous . | . . Route ------- -11/Scrapyard -10/Materials (discovered 3 exits: [*Mat x2] / [*Min]) History --------- Turn | Location | Event 3 | -11/Scrapyard | Discovered new exit (range 15) 95 | -11/Scrapyard | Entered Materials 143 | -10/Materials | Discovered new exit (range 8) 183 | -10/Materials | Discovered new exit (range 15) 305 | -10/Materials | Build established: Mutant 505 | -10/Materials | Discovered new exit (range 14) 554 | -10/Materials | Core integrity fell below 50% 612 | -10/Materials | Core integrity fell below 20% 618 | -10/Materials | Destroyed by S-10 Pest with Light Assault Rifle Last Messages --------------- Acquired 13 matter. Overheating: Core damaged (-42). Overheating: Aluminum Leg damaged (-2). Overheating: Matter decay (-32). R-06 Scavenger collects Lgt. Ion Engine. K-01 Serf collects debris. R-06 Scavenger suffers critical hit (Burn). Overheating: Med. Laser damaged (-18). >> Machine Analyzer network decryption results: Terminal x1 K-01 Serf collects debris. System corrupted: Broken Aluminum Leg fused. Aluminum Leg destroyed. Beam Cannon destroyed. Overheating: System interference. Med. Laser temporarily disabled. K-01 Serf collects debris. Broken Aluminum Leg destroyed. System corrupted: Med. Laser rejected. K-01 Serf collects debris. Map ----- +----------------------------------------------------+ | | | | | | | | | | | | | ????????????????????????????????????????????????? | | ????????????????????????????????????????????????? | | ????????????????????????????????????????????????? | | ????????????????????????????????????????????????? | | ????????????????????????????????????????????????? | | ????????????????????????????????????????????????? | | ????????????????????????????????????????????????? | | ????????????????????????????????????????????????? | | ????##????????????????T?????????????????????????? | | ???? ##?????????"""?????????????????????????????? | | ???? ??????????"""?????????????????????????????? | | #### #######????"""????????????#####???"""#?????? | | +????????????????# #???"T"###???? | | #?????????????????# < #??? #???? | | " """ """ #?????????????????# #?? #???? | | " """ """ ######+########+### #? #???? | | " """ """ # #???? | | +% #???? | | """"" #= #???? | | ? """""@ r k #?? #???? | | #### ???? """"" %#???? #???? | | #????????? """"" [ + #???? | | #### ##????????T?# """""sss###" ########???#???? | | ####+##??????????# """"" #?#"T#??????????????? | | # #??????????# "%""" #?####??????????????? | | # #??????????# % #???????????????????? | | # """ #??????????# #???########## #????? | | # """ #??????????# #### #????? | | # """ #??????????# % #????? | | # #??????????# #???????? | | # """ #??????????# ###+##???????? | | # """ #?????????## " " * #????????????? | | # """ #?????????# "T" * #???"""??????? | | # ########### """ #???"""??????? | | # ##"""""""## #???"""???""?? | | # ##" !"| "## ##?????????Y"?? | | #####/##" "## ############# #??????????""?? | | #???????????? #?????????????? | | < #????????????/#?????????????? | | #????????????? ?????????????? | | #####+## ##+###????????????? ?????????????? | | ???? ?#########????????????"""?""" ????????????? | | """ !????????????"""???????"""?""" ????????????? | | "R" ????????????"""???????"""?"""?#???????????? | +----------------------------------------------------+ Best States ------------- Heat Dissipation 25 Energy Generation 10 Energy Capacity 250 Matter Stores 300 Matter Capacity 300 Sight Range 16 Terrain Scan Density 10 Evasion (%) 55 Item Schematics ----------------- None Robot Schematics ------------------ None Fabricated ------------ Nothing Alien Tech Used ----------------- None Achievements -------------- None Challenges ------------ None Game ------ Seed SignalCorruptionField Manual? 0 Play Time 00:09:11 Cumulative 9.1 hours Start 2024.04.07 @ 22:41:08 End 2024.04.07 @ 22:50:17 Sessions 1 Manual Loads 0 Difficulty Rogue Special Mode None Game No. 11 Rogue 9 Adventurer 2 Explorer 0 Win Type - Total 0 Types 0/0/0/0/0/0/0/0/0 Lore% 5 Gallery% 14 Achievement% 11 Wizard Run 0 Options --------- Layout 1 ASCII 0 Keyboard 0 Movement Mouse Keybinds 0 Fullscreen 1 Font 24/Smallcaps Map View 50x35 Zoom Use 0% Tactical HUD 0 Map Filters NONE Filters NONE Steam 1 RUN: 9768901d-60d1-4266-8ef7-2e8218aa4f79